bitfinex/quotes_ETHUSD_20240927
["timestamp","ask_amount","ask_price","bid_price","bid_amount"]
[1727432467162,10.59560829,2647.4,2646.2,0.8013]
[1727432467378,6.92069,2647.4,2646.4,3.77868]
[1727432467676,6.92069,2647.4,2646.2,4.58019]
[1727432468177,6.92069,2647.4,2646.2,4.58016]
[1727432468546,6.92069,2647.4,2646.3,3.77884]
[1727432468749,6.92069,2647.4,2646.2,4.58016]
[1727432468976,6.92069,2647.4,2646.3,3.77885]
[1727432469147,6.92069,2647.4,2646.2,4.58016]
[1727432469148,6.92069,2647.4,2646.2,0.8013]
[1727432469541,6.92069,2647.4,2646.3,3.77883]
[1727432469857,6.92069,2647.4,2646.2,4.58021]
[1727432470186,6.92069,2647.4,2646.2,8.35912]
[1727432470343,6.92069,2647.4,2646.6,3.77842]
[1727432470549,3.92069,2647.4,2646.6,3.77842]
[1727432470864,3.92069,2647.4,2646.5,3.81831829]
[1727432471251,3.92069,2647.4,2646.3,3.81831829]
[1727432471450,6.92069,2647.4,2646.2,0.8013]
[1727432472087,6.92069,2647.4,2646.2,4.58019]
[1727432472442,6.92069,2647.4,2646.2,8.35909]
[1727432472648,6.92069,2647.4,2646.2,4.58019]
[1727432472864,6.92069,2647.4,2646.4,3.77868]
[1727432473081,6.92069,2647.4,2646.4,7.55736]
[1727432473381,6.92069,2647.4,2646.4,3.77868]
[1727432473545,6.92069,2647.4,2646.4,7.55726]
[1727432473746,6.92069,2647.4,2646.4,3.77858]
[1727432473977,6.92069,2647.4,2646.5,3.77855]
[1727432474383,6.92069,2647.4,2646.4,3.77858]
[1727432474554,6.92069,2647.4,2646.4,7.55717]
[1727432474755,6.92069,2647.4,2646.4,7.59689829]
[1727432475878,6.92069,2647.4,2646.5,3.77854]
[1727432477382,6.92069,2647.4,2646.5,3.77855]
[1727432477747,6.92069,2647.4,2646.8,0.778]
[1727432479288,6.92069,2647.4,2646.5,4.57434]
[1727432479586,6.92069,2647.4,2646.5,0.7959]
[1727432479788,6.92069,2647.4,2646.5,4.57439]
[1727432479957,6.92069,2647.4,2646.5,0.7959]
[1727432480157,6.92069,2647.4,2646.6,3.7784]
[1727432480475,6.92069,2647.4,2646.5,0.7959]
[1727432480854,6.92069,2647.4,2646.5,4.57436]
[1727432481183,6.92069,2647.4,2646.5,0.7959]
[1727432481389,6.92069,2647.4,2646.5,4.57441]
[1727432481887,6.92069,2647.4,2646.5,0.7959]
[1727432482089,6.92069,2647.4,2646.5,4.57439]
[1727432483258,6.92069,2647.4,2646.5,4.57438]
[1727432484082,6.92069,2647.4,2646.6,3.77842]
[1727432484392,6.92069,2647.4,2646.5,8.35286]
[1727432484554,6.92069,2647.4,2646.5,4.57438]
[1727432485266,6.92069,2647.4,2646.5,8.35284]
[1727432485456,6.92069,2647.4,2646.6,3.77842]
[1727432485678,6.77729,2647.4,2646.6,3.77842]
[1727432485867,6.77729,2647.4,2647.0,0.8112]
[1727432486451,6.77729,2647.4,2646.8,0.8112]
[1727432487358,6.77729,2647.4,2647.0,0.7617]
[1727432488394,6.77729,2647.4,2646.8,0.7617]
[1727432489176,6.77729,2647.4,2646.8,8.31786]
[1727432489475,6.77729,2647.4,2646.8,4.53974]
[1727432489989,3.77729,2647.4,2646.8,4.53974]
[1727432490194,3.77673,2647.8,2647.3,0.916407]
[1727432490501,0.00743709,2647.4,2647.3,0.916407]
[1727432491159,3.78472709,2647.4,2647.3,0.129607]
[1727432491360,0.00743709,2647.4,2647.3,0.129607]
[1727432491605,3.78472709,2647.4,2647.3,0.129607]
[1727432493411,0.6259,2648.7,2647.8,3.77668]
[1727432493611,4.4014,2648.7,2648.0,3.77632]
[1727432493912,4.4014,2648.7,2648.1,3.77622]
[1727432493913,0.6259,2648.7,2648.1,3.77622]
[1727432494074,4.40139,2648.7,2648.0,3.77632]
[1727432494495,3.77539,2648.8,2648.0,7.59463829]
[1727432494717,3.77539,2648.8,2648.1,3.77623]
[1727432494891,8.17609,2649.0,2648.2,4.60012]
[1727432495100,3.7748,2649.2,2648.2,5.98761658]
[1727432495414,4.40048,2649.4,2648.6,7.59388829]
[1727432495710,0.6259,2649.7,2648.7,3.77543]
[1727432495915,3.77452,2649.4,2648.5,3.77559]
[1727432496098,3.77487,2649.1,2648.6,0.7766]
[1727432496413,0.00743709,2648.7,2648.6,0.7766]
[1727432496882,0.00743709,2648.7,2648.6,4.55217]
[1727432497322,0.00743709,2648.7,2648.6,0.7766]
[1727432497776,0.00743709,2648.7,2648.6,4.55217]
[1727432498107,0.00743709,2648.7,2648.6,9.27877283]
[1727432498302,0.00743709,2648.7,2648.6,9.20326729]
[1727432498611,0.00743709,2648.9,2648.8,3.77529]
[1727432498919,3.77385,2649.9,2649.3,0.788]
[1727432499212,0.00743709,2649.4,2649.3,0.788]
[1727432499421,0.00743709,2649.4,2649.3,4.56258]
[1727432499913,0.00743709,2649.4,2649.3,8.38089829]
[1727432500292,0.00743709,2649.4,2649.3,4.56258]
[1727432500493,0.00743709,2649.4,2649.3,0.788]
[1727432501282,0.00743709,2649.4,2649.3,4.56258]
[1727432501521,0.00743709,2649.4,2649.3,0.788]
[1727432501818,0.00743709,2649.4,2649.3,4.56258]
[1727432502417,0.00743709,2649.4,2649.3,0.788]
[1727432502805,0.00743709,2649.4,2649.3,4.56258]
[1727432503486,0.00743709,2649.4,2649.3,0.788]
[1727432506344,7.60018538,2649.4,2649.3,0.788]
[1727432507854,10.60018538,2649.4,2649.3,0.788]
[1727432508319,11.15018538,2649.4,2649.3,0.788]
[1727432508828,11.15018538,2649.4,2648.1,3.77626]
[1727432508829,3.77549,2648.7,2648.1,3.77629]
[1727432509032,3.77549,2648.7,2648.0,3.77635]
[1727432509033,0.00743709,2648.2,2648.0,3.77635]
[1727432510955,0.00743709,2648.2,2648.1,3.77629]
[1727432511156,0.00743709,2648.2,2648.0,3.77635]
[1727432511521,0.00743709,2648.2,2648.1,3.77629]
[1727432512670,0.00743709,2648.2,2648.1,4.52875922]
[1727432515046,0.00743709,2648.2,2648.1,3.77629]
[1727432515568,0.00743709,2648.2,2648.0,7.55268]
[1727432515737,0.00743709,2648.2,2648.1,3.77629]
[1727432516336,0.00743709,2648.2,2648.0,3.77633]
[1727432517571,0.00743709,2648.2,2647.9,3.77655]
[1727432518577,0.00743709,2648.2,2647.9,7.55297]
[1727432518773,0.00743709,2648.2,2648.0,3.77638]
[1727432519076,0.00743709,2648.2,2648.1,3.77629]
[1727432519642,0.00743709,2648.2,2648.0,3.77642]
[1727432520957,0.00743709,2648.2,2648.0,3.77636]
[1727432521146,0.00743709,2648.2,2648.0,7.55271]
[1727432521342,0.00743709,2648.2,2648.0,3.77635]
[1727432521859,0.00743709,2648.2,2648.0,7.5527]
[1727432522066,0.00743709,2648.2,2648.1,3.77629]
[1727432524849,0.00743709,2648.2,2648.1,3.85180792]
[1727432525073,0.00743709,2648.2,2648.1,4.61462371]
[1727432525283,0.00743709,2648.2,2648.1,4.6146192]
[1727432526469,0.00743709,2648.2,2648.1,4.53910579]
[1727432527283,0.00743709,2648.2,2648.1,3.77629]
[1727432527284,0.63333709,2648.2,2648.1,3.77629]
[1727432528868,0.00743709,2648.2,2648.1,3.77629]
[1727432530471,0.63333709,2648.2,2648.1,3.77629]
[1727432530991,0.63333709,2648.2,2648.0,3.77635]
[1727432531858,0.63333709,2648.2,2648.1,3.77629]
[1727432532681,0.63333709,2648.2,2648.0,7.55271]
[1727432532880,0.63333709,2648.2,2648.0,7.5527]
[1727432533085,0.63333709,2648.2,2648.0,3.77635]
[1727432533497,0.63333709,2648.2,2647.3,0.129607]
[1727432533663,3.77673,2647.8,2647.3,3.907027]
[1727432533868,0.00743709,2647.4,2647.3,3.907027]
[1727432534077,0.00743709,2647.4,2647.3,0.129607]
[1727432535383,0.63333709,2647.4,2647.3,0.129607]
[1727432535766,0.63333709,2647.4,2647.3,3.907037]
[1727432535967,0.00743709,2647.4,2647.3,3.907037]
[1727432536767,0.63333709,2647.4,2647.3,0.129607]
[1727432537418,4.41062709,2647.4,2647.3,0.129607]
[1727432539379,0.63333709,2647.4,2647.3,0.129607]
[1727432542004,0.63333709,2647.4,2647.3,3.907037]
[1727432542005,0.00743709,2647.4,2647.3,3.907037]
[1727432542324,0.00743709,2647.4,2647.3,4.6754917]
[1727432542550,0.00743709,2647.4,2647.3,3.907037]
[1727432542759,0.00743709,2647.4,2647.3,0.129607]
[1727432544313,0.00743709,2647.4,2647.3,3.907037]
[1727432544537,0.63333709,2647.4,2647.3,0.129607]
[1727432544762,4.41062709,2647.4,2647.3,0.129607]
[1727432545521,0.63333709,2647.4,2647.3,0.129607]
[1727432545937,4.41062709,2647.4,2647.3,0.129607]
[1727432547121,8.22894538,2647.4,2647.3,0.129607]
[1727432547664,4.41062709,2647.4,2647.3,0.129607]
[1727432548684,0.63333709,2647.4,2647.3,0.129607]
[1727432549164,4.35937414,2647.4,2647.3,0.129607]
[1727432549668,0.58208414,2647.4,2647.3,0.129607]
[1727432550081,4.35937414,2647.4,2647.3,0.129607]
[1727432550576,0.58208414,2647.4,2647.3,0.129607]
[1727432551767,0.58952123,2647.4,2647.3,0.129607]
[1727432551954,4.36681123,2647.4,2647.3,0.129607]
[1727432552479,0.58952123,2647.4,2647.3,0.129607]
[1727432553068,0.00743709,2647.4,2647.3,3.907037]
[1727432553389,0.00743709,2647.4,2647.3,5.5389918]
[1727432554178,0.5821,2648.4,2648.0,0.7718]
[1727432554381,0.5821,2648.4,2648.0,4.54821]
[1727432554866,0.5821,2648.4,2648.1,3.77628]
[1727432555552,0.5821,2648.4,2648.2,3.77612]
[1727432555859,0.5821,2648.7,2648.2,7.55214]
[1727432556066,0.5821,2648.7,2648.2,3.77606]
[1727432556394,0.5821,2648.7,2648.2,4.6917172]
[1727432556890,0.5821,2648.7,2648.3,3.776]
[1727432557582,3.77494,2649.1,2648.4,3.77576]
[1727432557754,4.35704,2649.1,2648.5,4.5742]
[1727432557955,8.13203,2649.1,2648.5,4.5742]
[1727432558350,4.35704,2649.1,2648.5,4.5742]
[1727432558792,4.35704,2649.1,2648.5,1.633496]
[1727432558995,0.5821,2649.6,2649.0,3.77492]
[1727432559194,0.5821,2649.6,2648.7,3.81831829]
[1727432559195,0.5821,2649.6,2649.1,3.77486]
[1727432559371,0.5821,2649.6,2649.2,3.77471]
[1727432559695,0.5821,2649.9,2649.3,3.77453]
[1727432559996,4.35587,2649.9,2649.3,3.77453]
[1727432560201,3.77392,2649.8,2649.3,3.77453]
[1727432560502,8.12972,2649.9,2649.3,3.77449]
[1727432560662,4.35587,2649.9,2649.1,4.54115]
[1727432560859,3.77466,2649.3,2648.7,3.77534]
[1727432561072,4.35676,2649.3,2648.6,0.751]
[1727432561281,0.5821,2649.3,2648.6,0.751]
[1727432561487,0.5821,2649.3,2648.9,3.77505]
[1727432561759,0.5821,2649.3,2648.9,7.55011]
[1727432562000,0.5821,2649.6,2648.9,0.755011]
[1727432562196,0.5821,2649.6,2649.1,3.77475]
[1727432562802,0.5821,2649.6,2649.1,7.54951]
[1727432563011,0.5821,2649.6,2649.2,3.77469]
[1727432563303,3.77378,2649.9,2649.3,3.77447]
[1727432563304,4.35588,2649.9,2649.3,3.77447]
[1727432563601,3.77402,2649.7,2649.1,3.7748]
[1727432563965,3.77402,2649.7,2649.1,7.54957]
[1727432564303,3.77402,2649.7,2649.2,3.77463]
[1727432564674,3.77416,2649.6,2649.1,3.77477]
[1727432564857,3.77402,2649.7,2649.1,3.77477]
[1727432565058,3.77419,2649.6,2649.1,3.77477]
[1727432565263,3.77402,2649.7,2649.1,3.77477]
[1727432565469,3.77402,2649.7,2649.1,7.54955]
[1727432565770,3.77402,2649.7,2649.1,3.77477]
[1727432566363,3.77416,2649.6,2649.1,3.77477]
[1727432566664,3.77402,2649.7,2649.1,3.77477]
[1727432566865,3.7738,2649.9,2649.3,3.77454]
[1727432567060,3.7738,2649.9,2649.2,0.8207]
[1727432567297,7.54765,2649.9,2649.2,4.59537]
[1727432567801,3.77389,2649.8,2649.2,4.59537]
[1727432567963,3.77389,2649.8,2649.3,3.77456]
[1727432568168,7.26591214,2650.0,2649.3,4.6574657]
[1727432568392,3.49225214,2650.0,2649.5,3.77428]
[1727432568591,3.77373,2649.9,2649.3,7.54905]
[1727432569696,3.77373,2649.9,2649.4,3.77443]
[1727432570378,3.77373,2649.9,2649.3,3.77449]
[1727432570583,3.77373,2649.9,2649.2,0.8207]
[1727432570789,3.77401,2649.7,2649.2,4.59539]
[1727432570980,3.77389,2649.8,2649.3,3.77447]
[1727432571671,7.26596214,2650.0,2649.4,3.77443]
[1727432572007,3.77375,2649.9,2649.4,3.77443]
[1727432572212,3.77388,2649.8,2649.2,4.59531]
[1727432572414,3.77375,2649.9,2649.4,3.77441]
[1727432572415,3.77373,2649.9,2649.4,3.77441]
[1727432572574,7.54758,2649.9,2649.4,3.77441]
[1727432573174,3.77373,2649.9,2649.4,3.77441]
[1727432573419,7.54754,2649.9,2649.4,3.77441]
[1727432573752,3.77373,2649.9,2649.4,3.77441]
[1727432574008,7.54754,2649.9,2649.4,3.77441]
[1727432574380,3.77373,2649.9,2649.3,3.77449]
[1727432574708,3.77373,2649.9,2649.4,3.77443]
[1727432575204,3.77377,2649.9,2649.4,3.77435]
[1727432575783,3.77377,2649.9,2649.4,7.5487]
[1727432576098,3.49225214,2650.0,2649.6,3.77412]
[1727432576322,7.26584214,2650.0,2649.6,3.77412]
[1727432576520,3.49225214,2650.0,2649.6,3.77412]
[1727432576690,3.49225214,2650.0,2649.6,7.54819]
[1727432576891,3.49225214,2650.0,2649.6,4.612583]
[1727432577430,3.49225214,2650.0,2649.7,4.55803]
[1727432577736,7.26584214,2650.0,2649.4,8.33276]
[1727432577892,7.26584214,2650.0,2649.5,3.77425]
[1727432578487,3.49225214,2650.0,2649.6,3.77415]
[1727432579630,3.49225214,2650.0,2649.6,4.607406]
[1727432579933,3.49225214,2650.0,2649.6,4.607316]
[1727432580144,3.49225214,2650.0,2649.7,3.77401]
[1727432580315,3.49225214,2650.0,2649.7,7.54793]
[1727432580495,3.81831829,2649.9,2648.8,0.7986]
[1727432580699,3.7751,2649.0,2648.4,4.57438]
[1727432580895,3.7751,2649.0,2648.5,0.457438]
[1727432581102,0.5821,2649.2,2648.4,0.7986]
[1727432581402,7.26587214,2650.0,2647.1,19.59]
[1727432581403,0.5821,2649.6,2648.3,4.61151829]
[1727432581614,0.75477776,2650.0,2649.6,0.7932]
[1727432581796,0.75477776,2650.0,2649.8,7.59208829]
[1727432582015,0.75477776,2650.0,2649.9,3.77372]
[1727432582997,0.75392088,2650.0,2649.9,3.77372]
[1727432583200,0.75392088,2650.0,2649.6,4.56725]
[1727432583395,0.75392088,2650.0,2649.1,7.44481]
[1727432583396,0.75392088,2650.0,2649.4,4.57664]
[1727432583599,0.75392088,2650.0,2649.5,3.77429]
[1727432584753,1.21602088,2650.0,2649.5,3.77429]
[1727432585131,1.21602088,2650.0,2649.6,3.77415]
[1727432585469,1.21602088,2650.0,2649.6,4.261795]
[1727432586317,1.21602088,2650.0,2649.4,4.87665]
[1727432586318,1.21602088,2650.0,2649.4,4.07435]
[1727432587231,1.21602088,2650.0,2649.6,3.77402]
[1727432587565,1.21602088,2650.0,2649.6,7.54808]
[1727432587773,1.21602088,2650.0,2649.7,3.774]
[1727432590760,1.21602088,2650.0,2649.7,7.5479]
[1727432590974,1.21602088,2650.0,2649.1,0.7854]
[1727432591149,3.81831829,2649.5,2648.9,3.77504]
[1727432591380,3.81831829,2649.5,2648.7,3.77536]
[1727432591381,0.4621,2649.4,2648.7,3.77536]
[1727432591579,3.81831829,2649.2,2648.8,4.152826]
[1727432591790,3.81831829,2649.2,2648.4,0.8302]
[1727432592093,7.59304829,2649.2,2648.6,3.77546]
[1727432592288,3.81831829,2648.9,2648.4,4.60596]
[1727432592613,4.28041829,2648.9,2648.4,5.444148]
[1727432592903,4.28041829,2648.9,2648.4,4.613948]
[1727432593195,4.28041829,2648.9,2648.4,0.838188]
[1727432593400,4.28041829,2648.9,2647.9,3.77652]
[1727432593401,4.28041829,2648.9,2648.1,3.77621]
[1727432593554,0.4621,2648.9,2648.1,3.77627]
[1727432593758,3.81831829,2648.8,2648.3,3.77592]
[1727432594315,3.81831829,2648.6,2648.3,3.77592]
[1727432595563,3.81831829,2648.6,2648.4,3.77586]
[1727432596602,3.81831829,2648.8,2648.4,3.77586]
[1727432597008,3.81831829,2648.6,2648.2,7.55212]
[1727432597170,3.81831829,2648.6,2648.4,3.77577]
[1727432599125,3.81831829,2648.6,2648.2,8.307332]
[1727432599324,3.81831829,2648.6,2648.3,3.776]
[1727432601364,3.81831829,2648.6,2648.3,3.7759]
[1727432602440,3.81831829,2648.6,2648.4,3.7758]
[1727432602693,3.81831829,2648.6,2648.3,3.7759]
[1727432602839,3.81831829,2648.6,2648.1,3.77618]
[1727432603038,3.81831829,2648.6,2648.2,3.77613]
[1727432603643,3.81831829,2648.4,2648.1,4.236638]
[1727432604275,3.81831829,2648.4,2648.3,3.776]
[1727432604481,3.81831829,2648.6,2648.2,3.77613]
[1727432604678,3.81831829,2648.6,2648.3,3.77596]
[1727432604979,3.81831829,2648.6,2648.3,4.5772148]
[1727432607082,3.81831829,2648.6,2648.3,3.77596]
[1727432608772,3.81831829,2648.6,2648.1,3.77628]
[1727432608986,3.81831829,2648.6,2648.2,3.77614]
[1727432609489,3.81831829,2648.6,2648.3,3.77599]
[1727432610454,3.81831829,2648.8,2648.5,3.7757]
[1727432610665,7.59287829,2649.4,2648.8,0.7789]
[1727432610866,7.59287829,2649.4,2648.9,3.77514]
[1727432611247,3.81831829,2649.2,2648.8,4.55413]
[1727432611451,3.81831829,2649.2,2648.8,5.432621]
[1727432611983,3.81831829,2649.2,2648.8,5.50811915]
[1727432612186,3.81831829,2649.2,2648.8,5.432621]
[1727432612655,3.81831829,2649.2,2648.9,3.77515]
[1727432612856,4.23641,2649.5,2649.0,4.32576391]
[1727432613059,4.2362,2649.7,2649.1,3.77478]
[1727432613359,7.59247829,2649.6,2649.1,3.77478]
[1727432613689,7.59247829,2649.6,2649.2,0.43255839]
[1727432613995,3.81831829,2649.6,2649.2,0.43255839]
[1727432614196,0.11,2649.8,2649.3,4.55347]
[1727432614197,7.70219829,2649.8,2649.3,4.55347]
[1727432615386,0.11,2649.8,2649.5,3.7742]
[1727432615596,3.92831829,2649.8,2649.6,0.38496837]
[1727432615753,3.92831829,2649.8,2649.4,3.7744]
[1727432617180,3.92831829,2649.8,2649.6,3.77413]
[1727432617487,0.11,2649.8,2649.7,4.55291]
[1727432617707,0.11,2649.8,2649.7,5.385607]
[1727432618715,0.11,2649.8,2649.7,1.611597]
[1727432619802,0.11,2649.8,2649.7,0.7789]
[1727432620170,0.11,2649.8,2649.7,4.55291]
[1727432620400,0.11,2649.8,2649.7,0.7789]
[1727432621095,0.11,2649.8,2649.5,3.77422]
[1727432621283,0.11,2649.9,2649.5,4.57452]
[1727432621611,7.59238829,2649.7,2649.2,5.00746839]
[1727432621908,3.81831829,2649.5,2649.2,4.57491]
[1727432622276,3.81831829,2649.5,2649.0,3.77492]
[1727432622277,3.81831829,2649.5,2649.0,4.57521]
[1727432622612,3.81831829,2649.5,2649.0,4.152402]
[1727432622793,3.81831829,2649.3,2648.8,4.57557]
[1727432622996,3.81831829,2649.3,2648.9,3.77512]
[1727432624312,3.77426,2649.6,2648.8,4.57557]
[1727432624313,7.59260829,2649.5,2649.0,3.77487]
[1727432624473,7.59260829,2649.5,2649.1,0.377487]
[1727432624805,7.59260829,2649.5,2649.0,3.77487]
[1727432627907,3.81831829,2649.5,2649.0,3.77487]
[1727432628074,3.81831829,2649.5,2649.0,7.54978]
[1727432628418,0.11,2649.7,2649.2,3.77462]
[1727432628720,0.11,2649.7,2649.3,4.151992]
[1727432629574,3.92831829,2649.7,2649.3,4.151992]
[1727432630218,3.92831829,2649.7,2649.2,3.77462]
[1727432630407,7.70238829,2649.7,2649.2,3.77462]
[1727432631077,3.77424,2649.6,2649.0,3.77492]
[1727432631283,3.81831829,2649.5,2649.0,3.77492]
[1727432631525,3.81831829,2649.5,2649.1,0.377492]
[1727432631983,3.81831829,2649.5,2649.2,3.77465]
[1727432632389,7.70240829,2649.7,2649.2,3.77465]
[1727432632616,3.92831829,2649.7,2649.2,3.77465]
[1727432632822,3.92831829,2649.7,2648.8,0.8003]
[1727432632823,0.11,2649.7,2649.6,3.77415]
[1727432633024,0.75392088,2650.0,2649.7,3.77401]
[1727432633025,0.11,2649.9,2649.7,3.77401]
[1727432633190,0.11,2649.9,2649.3,1.1953142]
[1727432633390,7.70216829,2649.9,2649.4,3.77439]
[1727432633723,7.70216829,2649.9,2649.4,3.77434]
[1727432633939,3.92831829,2649.9,2649.4,3.77434]
[1727432634098,3.92831829,2649.9,2649.4,7.54865]
[1727432634438,3.92831829,2649.9,2649.5,3.77428]
[1727432635099,7.70203829,2649.9,2649.5,3.77428]
[1727432635795,7.70203829,2649.9,2649.3,4.55466]
[1727432636130,3.92831829,2649.9,2649.5,3.77427]
[1727432636331,7.70207829,2649.9,2649.5,3.77427]
[1727432636533,7.70207829,2649.9,2649.3,5.010126]
[1727432636825,3.81831829,2649.5,2649.2,3.77463]
[1727432637032,4.28041829,2649.7,2649.3,3.77454]
[1727432637389,4.28041829,2649.7,2649.3,3.77449]
[1727432638802,4.28041829,2649.7,2649.4,3.7744]
[1727432639324,0.4621,2649.7,2649.4,3.7744]
[1727432640257,0.4621,2649.7,2649.4,3.77443]
[1727432640918,3.92831829,2649.9,2649.4,1.559688]
[1727432641113,3.92831829,2649.9,2649.5,3.77422]
[1727432642954,3.77387,2649.8,2649.3,7.54895]
[1727432643153,3.77403,2649.7,2649.3,3.77446]
[1727432643315,3.77403,2649.7,2649.2,0.8043]
[1727432643516,3.81831829,2649.7,2649.4,3.77442]
[1727432643717,3.77387,2649.8,2649.4,3.77442]
[1727432644750,3.92831829,2649.9,2649.4,4.61268937]
[1727432644946,0.11,2649.9,2649.4,4.61268937]
[1727432645126,0.11,2649.9,2649.5,3.77421]
[1727432645835,3.88372,2649.9,2649.5,3.77421]
[1727432646159,0.11,2649.9,2649.5,3.77421]
[1727432646727,3.88375,2649.9,2649.5,3.77421]
[1727432647247,7.70206829,2649.9,2649.4,0.83839937]
[1727432647453,7.70206829,2649.9,2649.4,4.61282937]
[1727432648069,3.77389,2649.8,2649.3,8.30837]
[1727432648569,3.92831829,2649.9,2649.3,4.53386]
[1727432648729,7.70207829,2649.9,2649.4,3.77436]
[1727432648935,3.92831829,2649.9,2649.5,3.77424]
[1727432649271,7.70204829,2649.9,2649.3,4.53384]
[1727432649575,7.70204829,2649.9,2649.4,3.77441]
[1727432649727,3.92831829,2649.9,2649.5,3.77426]
[1727432650146,3.92831829,2649.9,2649.3,1.590245]
[1727432650147,7.70207829,2649.9,2649.4,3.77436]
[1727432650348,3.77387,2649.8,2649.4,3.77436]
[1727432650561,3.81831829,2649.7,2649.3,4.53396]
[1727432650762,3.81831829,2649.7,2649.2,3.7747]
[1727432650763,7.59237829,2649.7,2649.2,3.7747]
[1727432651061,7.59237829,2649.7,2649.2,4.609719]
[1727432651370,3.81831829,2649.7,2649.3,3.77445]
[1727432652161,7.59233829,2649.7,2649.3,3.77445]
[1727432652477,4.28041829,2649.5,2649.0,0.8006]
[1727432652764,0.4621,2649.0,2648.1,3.77622]
[1727432652974,3.81831829,2648.6,2648.2,4.153692]
[1727432653626,3.81831829,2648.6,2648.3,3.776]
[1727432654084,3.81831829,2648.6,2648.4,3.77586]
[1727432654260,3.81831829,2648.6,2648.3,3.776]
[1727432654453,7.59360829,2648.8,2648.3,4.1913622]
[1727432655243,7.59360829,2648.8,2648.3,0.4153622]
[1727432655447,3.81831829,2648.6,2648.3,0.4153622]
[1727432656571,7.59402829,2648.6,2648.3,0.4153622]
[1727432656776,7.59402829,2648.6,2647.9,8.33497]
[1727432656777,3.81831829,2648.4,2647.9,8.33497]
[1727432656975,3.81831829,2648.2,2647.9,8.33497]
[1727432657273,3.81831829,2648.2,2647.7,4.54385]
[1727432657571,3.81831829,2648.2,2647.8,0.754385]
[1727432657572,3.81831829,2648.0,2647.8,0.754385]
[1727432658798,3.77595,2648.4,2647.8,0.754385]
[1727432658799,3.81831829,2648.2,2647.8,8.307725]
[1727432659074,3.81831829,2648.2,2647.8,4.531015]
[1727432659647,3.81831829,2648.2,2647.9,4.3063515]
[1727432659842,3.81831829,2648.2,2647.7,0.7671]
[1727432660175,7.59454829,2648.2,2647.6,3.77692]
[1727432660372,7.59454829,2648.2,2647.6,7.55385]
[1727432660601,3.81831829,2648.2,2647.7,3.77678]
[1727432661273,3.81831829,2648.2,2647.8,3.77669]
[1727432662478,0.4621,2648.3,2647.8,4.531991]
[1727432662801,3.81831829,2648.4,2648.0,7.55276]
[1727432663153,0.4621,2648.5,2648.2,3.77612]
[1727432663353,0.4621,2648.5,2648.0,3.77634]
[1727432663577,0.4621,2648.5,2648.1,3.77625]
[1727432663783,0.4621,2648.5,2648.1,4.61463088]
[1727432664499,3.81831829,2648.4,2648.1,3.77625]
[1727432664705,7.59424829,2648.4,2647.8,3.77661]
[1727432665005,3.81831829,2648.2,2647.7,3.77683]
[1727432665163,3.81831829,2648.2,2647.8,3.7767]
[1727432665363,3.81831829,2648.2,2647.6,3.7769]
[1727432665364,4.23841,2648.1,2647.6,3.7769]
[1727432665565,0.4621,2648.1,2647.7,3.77684]
[1727432666260,0.4621,2648.1,2647.4,1.4472977]
[1727432666466,0.4621,2648.1,2647.7,3.77674]
[1727432667259,0.4621,2648.1,2647.8,3.7767]
[1727432668402,0.4621,2648.1,2647.5,4.61249047]
[1727432668403,7.59477829,2648.0,2647.5,4.61249047]
[1727432668701,0.4621,2648.1,2647.6,3.77698]
[1727432668862,0.4621,2648.1,2647.6,4.69147064]
[1727432669058,0.4621,2648.1,2647.6,4.61593505]
[1727432669468,0.4621,2648.1,2647.7,3.77678]
[1727432670623,0.4621,2648.1,2647.8,3.77661]
[1727432670911,7.55188,2648.4,2647.9,3.77657]
[1727432670912,0.4621,2648.3,2647.9,3.77657]
[1727432671219,0.4621,2648.3,2648.0,3.77636]
[1727432672919,0.4621,2648.5,2648.1,3.77622]
[1727432673086,0.4621,2648.5,2648.1,0.84021714]
[1727432673087,4.23786,2648.5,2648.1,0.84021714]
[1727432673289,0.4621,2648.5,2648.1,0.84021714]
[1727432673494,0.4621,2648.5,2648.1,4.61647714]
[1727432674090,4.23783,2648.5,2648.1,0.84021714]
[1727432674290,7.59418829,2648.4,2648.0,3.77638]
[1727432674492,3.81831829,2648.4,2648.0,3.77635]
[1727432674698,0.4621,2648.5,2648.1,4.231255]
[1727432675010,4.23785,2648.5,2648.1,0.455045]
[1727432675713,8.05613829,2648.5,2648.1,0.455045]
[1727432676601,4.28041829,2648.5,2648.2,0.4231385]
[1727432677427,3.77594,2648.4,2647.9,4.55066]
[1727432679096,3.81831829,2648.3,2647.9,4.55066]
[1727432679439,4.28041829,2648.5,2648.1,3.77621]
[1727432679606,4.28041829,2648.5,2648.2,0.377621]
[1727432680632,3.77586,2648.4,2647.9,3.7765]
[1727432680806,3.77586,2648.4,2647.9,7.553]
[1727432681001,3.77586,2648.4,2647.9,3.7765]
[1727432681197,3.77586,2648.4,2648.0,0.45533]
[1727432681409,4.28041829,2648.5,2648.0,4.23175]
[1727432681615,8.05624829,2648.5,2648.0,0.45533]
[1727432681998,4.28041829,2648.5,2648.0,4.23165]
[1727432682199,4.28041829,2648.5,2648.1,0.800815]
[1727432682434,3.81831829,2648.7,2648.1,0.800815]
[1727432682640,0.4621,2649.1,2648.6,3.77547]
[1727432682842,4.23699,2649.1,2648.7,0.377547]
[1727432683011,4.23699,2649.1,2648.6,3.77556]
[1727432683400,0.4621,2649.1,2648.6,3.77556]
[1727432683602,0.4621,2649.1,2648.7,0.7768]
[1727432683812,4.23697,2649.1,2648.7,0.7768]
[1727432684048,0.4621,2649.1,2648.7,0.7768]
[1727432684239,7.59304829,2649.2,2648.8,3.77529]
[1727432684550,3.77473,2649.2,2648.8,3.77529]
[1727432686245,3.88451,2649.4,2648.8,3.77529]
[1727432686246,0.11,2649.4,2648.8,3.77521]
[1727432686451,0.11,2649.4,2649.0,3.7749]
[1727432686742,0.11,2649.4,2649.1,3.77477]
[1727432686944,3.88446,2649.4,2648.9,3.77501]